Cogmind - Beta 14 @@@ ROGUE MODE // 2024.10.07 @ 22:39:40 Player: FyreGuyreal Result: Destroyed by G-47 Trooper with Particle Gun Performance ------------- Evolutions (0) 0 Regions Visited (2) 400 Robots Destroyed (10) 50 Value Destroyed (289) 289 Prototype IDs (0) 0 Alien Tech Used (0) 0 Bonus (0) 0 TOTAL SCORE: 739 Bonus ------- None Cogmind --------- Core Integrity 0/250 Matter 251/300 Energy 125/125 System Corruption 0% Temperature Cool (9) Movement Core (300) Ox5 Location -10/Mines Parts ------- > --- POWER (1) -------- Light Ion Engine > --- PROPULSION (2) --- (None) > --- UTILITY (2) ------ Medium Storage Unit Signal Interpreter > --- WEAPON (2) ------- Rocket Launcher Mining Laser > --- INVENTORY (10) --- Heat Sink High-capacity Matter Pod (134) Terrain Scan Processor Light Armor Plating Small Laser Beam Cannon Peak State ------------ > --- POWER ------------ Light Ion Engine > --- PROPULSION ------- Aluminum Leg Aluminum Leg > --- UTILITY ---------- Heat Sink Medium Storage Unit > --- WEAPON ----------- Assault Rifle Assault Rifle > --- INVENTORY -------- Small Laser [Rating: 7] Favorites ----------- Power Light Ion Engine Engine Light Ion Engine Propulsion Aluminum Leg Leg Aluminum Leg Utility Medium Storage Unit Device Heat Sink Storage Medium Storage Unit Processor Signal Interpreter Protection Light Armor Plating Weapon Assault Rifle Energy Gun Small Laser Ballistic Gun Assault Rifle Launcher Rocket Launcher Special Weapon Mining Laser Build | -11 -10 -10 ------- Run | Yrd Mat Min Slots Evolved . | . . . Power . | . . . Propulsion . | . . . Utility . | . . . Weapon . | . . . Parts Attached 15 | 4 3 8 Power 3 | 1 . 2 Engine 3 | 1 . 2 Core . | . . . Reactor . | . . . Propulsion 2 | . 2 . Treads . | . . . Leg 2 | . 2 . Wheel . | . . . Hover . | . . . Flight . | . . . Utility 4 | 1 1 2 Device 1 | 1 . . Storage 1 | . 1 . Processor 1 | . . 1 Hackware . | . . . Protection 1 | . . 1 Artifact . | . . . Weapon 6 | 2 . 4 Energy Gun 2 | . . 2 Energy Cannon . | . . . Ballistic Gun 2 | 2 . . Ballistic Cannon . | . . . Launcher 1 | . . 1 Special Weapon 1 | . . 1 Impact Weapon . | . . . Slashing Weapon . | . . . Piercing Weapon . | . . . Special Melee Weapon . | . . . Unidentified Prototypes . | . . . Parts Lost 6 | . 2 4 Power 2 | . 1 1 Propulsion 2 | . . 2 Utility 1 | . . 1 Weapon 1 | . 1 . Highest Loss Streak 3 | . 1 3 To Critical Strikes . | . . . Average Slot Usage (%) 74 | . 86 71 Engine 6 | . 5 7 Leg 16 | . 26 14 Device 4 | . 14 1 Storage 13 | . 12 14 Processor 2 | . . 3 Protection 1 | . . 2 Energy Gun 12 | . . 15 Ballistic Gun 6 | . 25 . Launcher 4 | . . 5 Special Weapon 4 | . . 5 Peak Build Rating 7 | 4 7 7 Average Rating 4 | 3 6 5 On Entrance 3 | . 4 5 Naked Turns . | . . . Heaviest Build 21 | 8 18 21 Greatest Support 20 | 3 20 20 Greatest Overweight (x) 5 | 2 2 5 Average Overweight (x) . | 1 . 1 Largest Inventory Capacity 10 | 5 10 10 Average Capacity 8 | 5 9 10 Most Carried 7 | 4 5 7 Average Carried 4 | 2 3 5 Final Capacity 10 | 5 10 10 Final Carried 6 | 3 5 6 Class Distribution -------------------- 100% | Mutant Dominant Class ---------------- Mutant | -10/Materials Mutant | -10/Mines Resources | -11 -10 -10 ----------- Run | Yrd Mat Min Matter Collected 589 | 236 131 222 Remotely . | . . . Salvage Created 309 | 30 143 136 Parts 15 | 1 10 4 Haulers Intercepted . | . . . Recyclers Shooed . | . . . Parts Field Recycled . | . . . Retrieved Matter . | . . . Parts Self-Destructed . | . . . Prevented . | . . . Kills | -11 -10 -10 ------- Run | Yrd Mat Min Combat Hostiles Destroyed 9 | 1 4 4 Guns 7 | 1 4 2 AOE 2 | . . 2 Classes Destroyed 3 | 1 2 . Builder 1 | . 1 . Swarmer 2 | . 2 . Grunt 7 | 1 2 4 Best Kill Streak 5 | 1 5 2 Combat Bots Only 4 | 1 4 2 Max Kills in Single Turn 1 | 1 1 1 Gunslinging . | . . . Exploded 1 | . . 1 Melee . | . . . Uniques/NPCs Destroyed . | . . . Combat | -11 -10 -10 -------- Run | Yrd Mat Min Hostile Shots Fired 121 | 2 81 38 Missed 33 | . 24 9 Damage Taken 930 | 22 516 392 Core 259 | . 150 109 Absorbed by Shields . | . . . Core Remaining (%) 100 | 100 . . Volleys Fired 31 | 1 16 14 Largest 2 | 2 2 2 Hottest 100 | 40 40 100 Shots Fired 54 | 2 32 20 Gun 46 | 2 32 12 Cannon . | . . . Launcher 7 | . . 7 Special 1 | . . 1 Kinetic 34 | 2 32 . Thermal 13 | . . 13 Explosive 7 | . . 7 Electromagnetic . | . . . Robot Hit Streak 3 | 1 3 3 Robot Miss Streak 4 | . 4 3 Penetration Max . | . . . Secondary Targets 1 | . 1 . Max Gunslinging Chain 1 | . 1 . Shots Hit Robots 23 | 1 13 9 Core Hits 19 | 1 6 12 Critical Kills 1 | . 1 . Critical Parts Destroyed . | . . . Critical Strikes 1 | . 1 . Destroy 1 | . 1 . Melee Attacks . | . . . Impact . | . . . Slashing . | . . . Piercing . | . . . Sneak Attacks . | . . . Combat Hostiles . | . . . Follow-up Attacks . | . . . Damage Inflicted 474 | 15 170 289 Guns 275 | 15 170 90 Cannons . | . . . Explosions 199 | . . 199 Melee . | . . . Ramming . | . . . Kinetic 185 | 15 170 . Thermal 90 | . . 90 Explosive 199 | . . 199 Electromagnetic . | . . . Impact . | . . . Slashing . | . . . Piercing . | . . . Highest Corruption . | . . . Average Corruption . | . . . Corruption Purged . | . . . Corruption Blocked . | . . . Overload Shots . | . . . Overflow Damage . | . . . Projectiles . | . . . Explosions . | . . . Melee . | . . . Knockbacks . | . . . Impact . | . . . Kinetic . | . . . Secondary . | . . . Self-Inflicted Damage 6 | . . 6 Shots 1 | . . 1 Rammed . | . . . Targets Rammed . | . . . Kicked . | . . . Crushed . | . . . Highest Temperature 57 | . . 57 Average Temperature 25 | . . 25 Received Heat Transfer 363 | 12 108 243 Siege Activations . | . . . Robots Corrupted . | . . . Combat Hostiles . | . . . Parts Fried . | . . . Impact Corruptions . | . . . Robots Melted . | . . . Combat Hostiles . | . . . Parts Melted 1 | . . 1 Heat Transferred 200 | . . 200 Parts Sabotaged . | . . . Parts Stolen . | . . . Parts Stripped . | . . . Power Chain Reactions . | . . . Alert | -11 -10 -10 ------- Run | Yrd Mat Min Peak Influence 101 | 20 101 99 Initial 35 | . . 35 Average 28 | 12 58 33 Maximum Alert Level . | . . . Low Security (%) 100 | 100 100 100 Level 1 . | . . . Level 2 . | . . . Level 3 . | . . . Level 4 . | . . . Level 5 . | . . . High Security . | . . . Max Security . | . . . Squads Dispatched 1 | . 1 . Investigation . | . . . Extermination . | . . . Reinforcement 1 | . 1 . Assault . | . . . Garrison . | . . . Intercept . | . . . Searches Triggered . | . . . Construction Impeded . | . . . Haulers Reinforced . | . . . Active Scanning Responses . | . . . Cargo Convoy Interrupts . | . . . Stealth | -11 -10 -10 --------- Run | Yrd Mat Min Distress Signals 1 | . 1 . Communications Jammed . | . . . Distress Signals . | . . . Times Spotted 15 | 1 9 5 Peak Tracking Total 5 | 1 5 2 Tactical Retreats 2 | . 1 1 Traps | -11 -10 -10 ------- Run | Yrd Mat Min Traps Triggered . | . . . Indirectly . | . . . Trap Hack Attempts . | . . . Triggered . | . . . Disarmed . | . . . Reprogrammed . | . . . Reused . | . . . Traps Extracted . | . . . Installed . | . . . Triggered . | . . . Machines | -11 -10 -10 ---------- Run | Yrd Mat Min Machines Disabled . | . . . Max in Single Turn . | . . . Machines Repaired . | . . . Machines Dismantled . | . . . Machines Sabotaged . | . . . Overloaded Fab Kills . | . . . Hacking | -11 -10 -10 --------- Run | Yrd Mat Min Machines Accessed . | . . . Terminals . | . . . Fabricators . | . . . Repair Stations . | . . . Recycling Units . | . . . Scanalyzers . | . . . Garrison Access . | . . . Total Hacks . | . . . Successful . | . . . Failed . | . . . Catastrophic . | . . . Database Lockouts . | . . . Manual . | . . . Terminals . | . . . Fabricators . | . . . Repair Stations . | . . . Recycling Units . | . . . Scanalyzers . | . . . Garrison Access . | . . . Terminal Hacks . | . . . Fabricator Hacks . | . . . Repair Station Hacks . | . . . Recycling Unit Hacks . | . . . Scanalyzer . | . . . Garrison Access Hacks . | . . . Unauthorized Hacks . | . . . Terminals . | . . . Fabricators . | . . . Repair Stations . | . . . Recycling Units . | . . . Scanalyzers . | . . . Garrison Access . | . . . Data Cores Recovered . | . . . Used . | . . . Hacking Detections . | . . . Full Trace Events . | . . . Feedback Events . | . . . Feedback Blocked . | . . . Robot Schematics Acquired . | . . . Robots Built . | . . . Authchips . | . . . Time . | . . . Total Robot Build Rating . | . . . Part Schematics Acquired . | . . . Parts Built . | . . . Authchips . | . . . Time . | . . . Total Part Build Rating . | . . . Parts Repaired . | . . . Time . | . . . Parts Recycled . | . . . Recycled Matter . | . . . Retrieved Matter . | . . . Retrieved Components . | . . . Parts Scanalyzed . | . . . Part Schematics Acquired . | . . . Parts Damaged . | . . . Bothacking | -11 -10 -10 ------------ Run | Yrd Mat Min Used RIF Installer . | . . . Robots Hacked . | . . . Non-combat . | . . . Combat . | . . . Robot Hacks Applied . | . . . Relay Couplers Released . | . . . Fabnet Peak Effective % . | . . . Robots Rewired . | . . . Allies Hacked . | . . . Hacks Repelled . | . . . Allies | -11 -10 -10 -------- Run | Yrd Mat Min Total Allies . | . . . Largest Group . | . . . Highest-Rated Group . | . . . Highest-Rated Ally . | . . . Total Orders . | . . . Ally Attacks . | . . . Total Damage . | . . . Kills . | . . . Allies Corrupted . | . . . Allies Melted . | . . . Intel | -11 -10 -10 ------- Run | Yrd Mat Min Robot Analysis Total . | . . . Derelict Logs Recovered . | . . . Drone Launches . | . . . Drone Recoveries . | . . . Exploration | -11 -10 -10 ------------- Run | Yrd Mat Min Turns Passed 1470 | 537 194 739 Spaces Moved 585 | 122 114 349 Core 135 | 122 5 8 Treads . | . . . Legs 450 | . 109 341 Wheels . | . . . Hover . | . . . Flight . | . . . Fastest Speed 50 | 50 120 120 Average Speed 159 | 102 121 191 Slowest Speed 300 | 150 150 300 Overloaded Moves . | . . . Propulsion Burnouts . | . . . Robots Hopped . | . . . Cave-ins Triggered . | . . . Exploration Rate (%) 28 | 11 13 61 Regions Visited 2 Branch Regions 1 Pre-discovered Areas . | . . . Known Exits Taken . | . . . Unknown Exits Taken 2 | 1 1 . Scrap Searched 3 | . . 3 Spaces Dug . | . . . Terrain Destroyed 76 | . . 76 Melee . | . . . Projectile . | . . . AOE 76 | . . 76 Terrain Rammed . | . . . Walls Destroyed . | . . . Machines Disabled . | . . . Actions | -11 -10 -10 --------- Run | Yrd Mat Min Total 1067 | 532 137 398 Wait 415 | 399 . 16 Move 583 | 121 113 349 Hop . | . . . Pick Up 20 | 7 5 8 Fast Attach . | . . . Attach 11 | 4 3 4 Detach . | . . . Swap 4 | . . 4 Drop 3 | . . 3 Fire 31 | 1 16 14 Melee . | . . . Ram . | . . . Kick . | . . . Crush . | . . . Escape Stasis . | . . . Rewire . | . . . Trap . | . . . Miscellaneous . | . . . Route ------- -11/Scrapyard -10/Materials -10/Mines History --------- Turn | Location | Event 2 | -11/Scrapyard | Met Revision 17 59 | -11/Scrapyard | Discovered new exit (range 8) 538 | -11/Scrapyard | Entered Materials 538 | -10/Materials | Discovered new exit (range 9) 539 | -10/Materials | Build established: Mutant 645 | -10/Materials | Core integrity fell below 50% 732 | -10/Materials | Entered Mines 735 | -10/Mines | Met a Derelict bent on vengeance 799 | -10/Mines | Core integrity fell below 20% 856 | -10/Mines | Lost 3 parts (1p1n1u) 1187 | -10/Mines | Received a Rocket Launcher from a helpful Derelict 1471 | -10/Mines | Destroyed by G-47 Trooper with Particle Gun Last Messages --------------- Acquired Hcp. Matter Pod. Acquired 47 matter. Acquired 26 matter. Acquired 24 matter. Acquired 37 matter. U-05 Engineer lays Concrete. Aluminum Leg destroyed. G-34 Mercenary destroyed. The unstable cave ceiling collapses. G-47 Trooper destroyed. The unstable cave ceiling collapses. U-05 Engineer lays Concrete. The unstable cave ceiling collapses. U-05 Engineer builds a Wall. U-05 Engineer lays Concrete. U-05 Engineer builds a Wall. Acquired 12 matter. U-05 Engineer builds a Wall. The unstable cave ceiling collapses. U-05 Engineer lays Concrete. Map ----- +----------------------------------------------------+ | #????##?####??????# #?? | | #??## ### #????## #?? | | #### #?# ###### ##?? | | #?# #??? | | #### #?# ##?? | | ???#% #### #?? | | ??## ##?# ! ####### #?? | | ?## ####[[ ##?????## #?? | | ##! ####??????## ### | | # ! ##### #????????## # # | | ## ###???# #?######## # | | ?###?????# # | | ?????????##### ###### # | | ?????????????? ?????### ## | | ?????????????# #??????## ###? | | ?????????????# #???????#u##??? | | ?????????????# #??###### ##??? | | ?????????????# #??# = ##??? | | ?????????????# #??# ####u##??? | | ?????????????# #??# ## # ##?? | | ?????????????# #??# ## #?? | | ?????????????# #### ### ##? | | ?????????????# ## #? | | ?????????????# ####### # # #? | | ?????????????# #????## #? | | ?????????????# #????# @ # | | ?????????????# #????# | | ?????????????# ###### # # | | ????????????## ## % | | ???????????## ! ! # | | ???????????# ###### ## | | ???????????# ##????# #? | | ???????????## ##?????# # #? | | ????????????####??????###g #? | | ???????????????????????? ##? | | ???????????????????????? #?? | | ???????????????????????? ##?? | | ??????????????????????? #??? | | ??????????????????????? ???? | | ??????????????????????? ???? | | ??????????????????????? #???? | | ??????????????????????# ????? | | ??????????????????????# ????? | | ???????????????????????? ????? | | ???????????????????????? ????? | | ?????????????????????????????? | | ?????????????????????????????? | | ?????????????????????????????? | | ?????????????????????????????? | | ?????????????????????????????? | +----------------------------------------------------+ Best States ------------- Heat Dissipation 35 Energy Generation 10 Energy Capacity 250 Matter Stores 300 Matter Capacity 300 Sight Range 16 Terrain Scan Density 10 Armor Coverage 150 Evasion (%) 55 Item Schematics ----------------- None Robot Schematics ------------------ None Fabricated ------------ Nothing Alien Tech Used ----------------- None Achievements -------------- None Challenges ------------ None Game ------ Seed PlasmaReactionNukerbomber Manual? 0 Play Time 00:19:03 Cumulative 0.8 hours Start 2024.10.07 @ 22:16:30 End 2024.10.07 @ 22:39:40 Sessions 1 Manual Loads 0 Difficulty Rogue Special Mode None Game No. 2 Rogue 2 Adventurer 0 Explorer 0 Win Type - Total 0 Types 0/0/0/0/0/0/0/0/0 Lore% 0 Gallery% 1 Achievement% 1 Wizard Run 0 Options --------- Layout 1 ASCII 0 Keyboard 0 Movement Numpad Keybinds 0 Fullscreen 1 Font 16/SmallcapsGlow Map View 55x38 Zoom Use 2% Tactical HUD 0 Map Filters NONE Filters NONE Steam 1 RUN: 2039afdb-dcaa-4376-a5ca-11c246d29de1